Workbook

Sheet Свет
A1: 2016 | B1: Т1 (П) | C1: 5.38 | D1: Т2(Н) | E1: 1.43 | F1: Т3(Пн) | G1: 4.63 | BA1: Т1 (П) | BB1: 6.41 | BC1: Т2(Н) | BD1: 1.64 | BE1: Т3(Пн) | BF1: 5.32
A3: 2017 | B3: Т1 (П) | C3: 6.41 | D3: Т2(Н) | E3: 1.64 | F3: Т3(Пн) | G3: 5.32 | BA3: Т1 (П) | BB3: 6.46 | BC3: Т2(Н) | BD3: 1.79 | BE3: Т3(Пн) | BF3: 5.38
A5: 2018 | B5: Т1 (П) | C5: 6.46 | D5: Т2(Н) | E5: 1.79 | F5: Т3(Пн) | G5: 5.38 | BA5: Т1 (П) | BB5: 6.46 | BC5: Т2(Н) | BD5: 1.92 | BE5: Т3(Пн) | BF5: 5.38
A7: 2019 | B7: Т1 (П) | C7: 6.57 | D7: Т2(Н) | E7: 1.95 | F7: Т3(Пн) | G7: 5.47 | BA7: Т1 (П) | BB7: 6.57 | BC7: Т2(Н) | BD7: 2.13 | BE7: Т3(Пн) | BF7: 5.47
A9: 2020 | B9: Т1 (П) | C9: 6.57 | D9: Т2(Н) | E9: 2.13 | F9: Т3(Пн) | G9: 5.47 | BA9: Т1 (П) | BB9: 6.79 | BC9: Т2(Н) | BD9: 2.32 | BE9: Т3(Пн) | BF9: 5.66
A11: Год / Месяц | B11: Январь | J11: Февраль | R11: Март | AA11: Апрель | AI11: Май | AQ11: Июнь | BA11: Июль | BI11: Август | BQ11: Сентябрь | BZ11: Октябрь | CH11: Ноябрь | CP11: Декабрь
B12: Счетчик 159 расход | E12: Счетчик 617 расход | H12: ИТОГО | I12: ИТОГО | J12: Счетчик 159 расход | M12: Счетчик 617 расход | P12: ИТОГО | Q12: ИТОГО | R12: Счетчик 159 расход | U12: Счетчик 617 расход | X12: ИТОГО | Y12: ИТОГО | Z12: Квартал | AA12: Счетчик 159 расход | AD12: Счетчик 617 расход | AG12: ИТОГО | AH12: ИТОГО | AI12: Счетчик 159 расход | AL12: Счетчик 617 расход | AO12: ИТОГО | AP12: ИТОГО | AQ12: Счетчик 159 расход | AT12: Счетчик 617 расход | AW12: ИТОГО | AX12: ИТОГО | AY12: Квартал | AZ12: I Полу-годие | BA12: Счетчик 159 расход | BD12: Счетчик 617 расход | BG12: ИТОГО | BH12: ИТОГО | BI12: Счетчик 159 расход | BL12: Счетчик 617 расход | BO12: ИТОГО | BP12: ИТОГО | BQ12: Счетчик 159 расход | BT12: Счетчик 617 расход | BW12: ИТОГО | BX12: ИТОГО | BY12: Квартал | BZ12: Счетчик 159 расход | CC12: Счетчик 617 расход | CF12: ИТОГО | CG12: ИТОГО | CH12: Счетчик 159 расход | CK12: Счетчик 617 расход | CN12: ИТОГО | CO12: ИТОГО | CP12: Счетчик 159 расход | CS12: Счетчик 617 расход | CV12: ИТОГО | CW12: ИТОГО | CX12: Квартал | CY12: II Полу-годие | CZ12: ГОД
B13: Т1 / П | C13: Т2 / Н | D13: Т3 / П/п | E13: Т1 / П | F13: Т2 / Н | G13: Т3 / П/п | H13: Кв.час | I13: Руб. | J13: Т1 / П | K13: Т2 / Н | L13: Т3 / П/п | M13: Т1 / П | N13: Т2 / Н | O13: Т3 / П/п | P13: Кв.час | Q13: Руб. | R13: Т1 / П | S13: Т2 / Н | T13: Т3 / П/п | U13: Т1 / П | V13: Т2 / Н | W13: Т3 / П/п | X13: Кв.час | Y13: Руб. | Z13: руб | AA13: Т1 / П | AB13: Т2 / Н | AC13: Т3 / П/п | AD13: Т1 / П | AE13: Т2 / Н | AF13: Т3 / П/п | AG13: Кв.час | AH13: Руб. | AI13: Т1 / П | AJ13: Т2 / Н | AK13: Т3 / П/п | AL13: Т1 / П | AM13: Т2 / Н | AN13: Т3 / П/п | AO13: Кв.час | AP13: Руб. | AQ13: Т1 / П | AR13: Т2 / Н | AS13: Т3 / П/п | AT13: Т1 / П | AU13: Т2 / Н | AV13: Т3 / П/п | AW13: Кв.час | AX13: Руб. | AY13: руб | BA13: Т1 / П | BB13: Т2 / Н | BC13: Т3 / П/п | BD13: Т1 / П | BE13: Т2 / Н | BF13: Т3 / П/п | BG13: Кв.час | BH13: Руб. | BI13: Т1 / П | BJ13: Т2 / Н | BK13: Т3 / П/п | BL13: Т1 / П | BM13: Т2 / Н | BN13: Т3 / П/п | BO13: Кв.час | BP13: Руб. | BQ13: Т1 / П | BR13: Т2 / Н | BS13: Т3 / П/п | BT13: Т1 / П | BU13: Т2 / Н | BV13: Т3 / П/п | BW13: Кв.час | BX13: Руб. | BY13: руб | BZ13: Т1 / П | CA13: Т2 / Н | CB13: Т3 / П/п | CC13: Т1 / П | CD13: Т2 / Н | CE13: Т3 / П/п | CF13: Кв.час | CG13: Руб. | CH13: Т1 / П | CI13: Т2 / Н | CJ13: Т3 / П/п | CK13: Т1 / П | CL13: Т2 / Н | CM13: Т3 / П/п | CN13: Кв.час | CO13: Руб. | CP13: Т1 / П | CQ13: Т2 / Н | CR13: Т3 / П/п | CS13: Т1 / П | CT13: Т2 / Н | CU13: Т3 / П/п | CV13: Кв.час | CW13: Руб. | CX13: руб | CZ13: руб
A14: 2016 | B14: =SUM(B25-B24) -> 0 | C14: 0 | D14: 0 | E14: 0 | F14: 0 | G14: 0 | H14: 0 | I14: =SUM(((B14+E14+(B14+E14)*5/100)*C1)+((C14+F14+(C14+F14)*5/100)*E1)+((D14+G14+(D14+G14)*5/100)*G1)) -> 0 | J14: =SUM(J25-J24) -> 0 | K14: 0 | L14: 0 | M14: 0 | N14: 0 | O14: 0 | Q14: =SUM(((J14+M14+(J14+M14)*5/100)*C1)+((K14+N14+(K14+N14)*5/100)*E1)+((L14+O14+(L14+O14)*5/100)*G1)) -> 0 | R14: =SUM(R25-R24) -> 0 | S14: 0 | T14: 0 | U14: 0 | V14: 0 | W14: 0 | X14: =SUM(R14:W14) -> 0 | Y14: =SUM(((R14+U14+(R14+U14)*5/100)*C1)+((S14+V14+(S14+V14)*5/100)*E1)+((T14+W14+(T14+W14)*5/100)*G1)) -> 0 | Z14: =SUM(I14+Q14+Y14) -> 0 | AA14: =SUM(AA25-AA24) -> 0 | AB14: 0 | AC14: 0 | AD14: 0 | AE14: 0 | AF14: 0 | AG14: =SUM(AA14:AF14) -> 0 | AH14: =SUM(((AA14+AD14+(AA14+AD14)*5/100)*C1)+((AB14+AE14+(AB14+AE14)*5/100)*E1)+((AC14+AF14+(AC14+AF14)*5/100)*G1)) -> 0 | AI14: =SUM(AI25-AI24) -> 0 | AJ14: 0 | AK14: 0 | AL14: 0 | AM14: 0 | AN14: 0 | AO14: =SUM(AI14:AN14) -> 0 | AP14: =SUM(((AI14+AL14+(AI14+AL14)*5/100)*C1)+((AJ14+AM14+(AJ14+AM14)*5/100)*E1)+((AK14+AN14+(AK14+AN14)*5/100)*G1)) -> 0 | AQ14: =SUM(AQ25-AQ24) -> 791 | AR14: 955 | AS14: 1108 | AT14: 1089 | AU14: 1168 | AV14: 1417 | AW14: =SUM(AQ14:AV14) -> 6528 | AX14: =SUM(((AQ14+AT14+(AQ14+AT14)*5/100)*C1)+((AR14+AU14+(AR14+AU14)*5/100)*E1)+((AS14+AV14+(AS14+AV14)*5/100)*G1)) -> 26083.092 | AY14: =SUM(AH14+AP14+AX14) -> 26083.092 | AZ14: =SUM(Z14+AY14) -> 26083.092 | BA14: =SUM(BA25-BA24) -> 777 | BB14: 1019 | BC14: 1022 | BD14: 1354 | BE14: 1534 | BF14: 1736 | BG14: =SUM(BA14:BF14) -> 7442 | BH14: =SUM(((BA14+BD14+(BA14+BD14)*5/100)*BB1)+((BB14+BE14+(BB14+BE14)*5/100)*BD1)+((BC14+BF14+(BC14+BF14)*5/100)*BF1)) -> 34145.1495 | BI14: =SUM(BI25-BI24) -> 841 | BJ14: 1189 | BK14: 1263 | BL14: 1251 | BM14: 1398 | BN14: 1641 | BO14: =SUM(BI14:BN14) -> 7583 | BP14: =SUM(((BI14+BL14+(BI14+BL14)*5/100)*BB1)+((BJ14+BM14+(BJ14+BM14)*5/100)*BD1)+((BK14+BN14+(BK14+BN14)*5/100)*BF1)) -> 34756.764 | BQ14: =SUM(BQ25-BQ24) -> 1669 | BR14: 1812 | BS14: 2118 | BT14: 1902 | BU14: 1892 | BV14: 2418 | BW14: =SUM(BQ14:BV14) -> 11811 | BX14: =SUM(((BQ14+BT14+(BQ14+BT14)*5/100)*BB1)+((BR14+BU14+(BR14+BU14)*5/100)*BD1)+((BS14+BV14+(BS14+BV14)*5/100)*BF1)) -> 55750.9995 | BY14: =SUM(BH14+BP14+BX14) -> 124652.913 | BZ14: =SUM(BZ25-BZ24) -> 2156 | CA14: 2442 | CB14: 2469 | CC14: 1908 | CD14: 1690 | CE14: 2512 | CF14: =SUM(BZ14:CE14) -> 13177 | CG14: =SUM(((BZ14+CC14+(BZ14+CC14)*5/100)*BB1)+((CA14+CD14+(CA14+CD14)*5/100)*BD1)+((CB14+CE14+(CB14+CE14)*5/100)*BF1)) -> 62291.922 | CH14: =SUM(CH25-CH24) -> 5342 | CI14: 5655 | CJ14: 6505 | CK14: 4851 | CL14: 5020 | CM14: 6553 | CN14: =SUM(CH14:CM14) -> 33926 | CO14: =SUM(((CH14+CK14+(CH14+CK14)*5/100)*BB1)+((CI14+CL14+(CI14+CL14)*5/100)*BD1)+((CJ14+CM14+(CJ14+CM14)*5/100)*BF1)) -> 159928.3245 | CP14: =SUM(CP25-CP24) -> 6656 | CQ14: 6668 | CR14: 8121 | CS14: 6393 | CT14: 6411 | CU14: 8311 | CV14: =SUM(CP14:CU14) -> 42560 | CW14: =SUM(((CP14+CS14+(CP14+CS14)*5/100)*BB1)+((CQ14+CT14+(CQ14+CT14)*5/100)*BD1)+((CR14+CU14+(CR14+CU14)*5/100)*BF1)) -> 202137.4845 | CX14: =SUM(CG14+CO14+CW14) -> 424357.731 | CY14: =SUM(BY14+CX14) -> 549010.644 | CZ14: =SUM(Z14+AY14+BY14+CX14) -> 575093.736
A16: 2017 | B16: =SUM(B27-B26) -> 5011 | C16: 3332 | D16: 6163 | E16: 5482 | F16: 4214 | G16: 7176 | H16: =SUM(B16:G16) -> 31378 | I16: =SUM(((B16+E16+(B16+E16)*5/100)*C3)+((C16+F16+(C16+F16)*5/100)*E3)+((D16+G16+(D16+G16)*5/100)*G3)) -> 158129.0025 | J16: =SUM(J27-J26) -> 6266 | K16: 5318 | L16: 7698 | M16: 6303 | N16: 6197 | O16: 8147 | P16: =SUM(J16:O16) -> 39929 | Q16: =SUM(((J16+M16+(J16+M16)*5/100)*C3)+((K16+N16+(K16+N16)*5/100)*E3)+((L16+O16+(L16+O16)*5/100)*G3)) -> 192934.6545 | R16: =SUM(R27-R26) -> 4199 | S16: 3885 | T16: 5050 | U16: 4469 | V16: 4131 | W16: 5887 | X16: 27621 | Y16: =SUM(((R16+U16+(R16+U16)*5/100)*C3)+((S16+V16+(S16+V16)*5/100)*E3)+((T16+W16+(T16+W16)*5/100)*G3)) -> 133237.608 | Z16: =SUM(I16+Q16+Y16) -> 484301.265 | AA16: =SUM(AA27-AA26) -> 4042 | AB16: 3093 | AC16: 4992 | AD16: 5089 | AE16: 4368 | AF16: 6959 | AG16: 28543 | AH16: =SUM(((AA16+AD16+(AA16+AD16)*5/100)*C3)+((AB16+AE16+(AB16+AE16)*5/100)*E3)+((AC16+AF16+(AC16+AF16)*5/100)*G3)) -> 141062.3235 | AI16: =SUM(AI27-AI26) -> 2089 | AJ16: 2041 | AK16: 2569 | AL16: 2228 | AM16: 2091 | AN16: 2966 | AO16: 13984 | AP16: =SUM(((AI16+AL16+(AI16+AL16)*5/100)*C3)+((AJ16+AM16+(AJ16+AM16)*5/100)*E3)+((AK16+AN16+(AK16+AN16)*5/100)*G3)) -> 67089.3825 | AQ16: =SUM(AQ27-AQ26) -> 1167 | AR16: 1189 | AS16: 1512 | AT16: 1780 | AU16: 1877 | AV16: 2354 | AW16: 9879 | AX16: =SUM(((AQ16+AT16+(AQ16+AT16)*5/100)*C3)+((AR16+AU16+(AR16+AU16)*5/100)*E3)+((AS16+AV16+(AS16+AV16)*5/100)*G3)) -> 46709.9115 | AY16: =SUM(AH16+AP16+AX16) -> 254861.6175 | AZ16: =SUM(Z16+AY16) -> 739162.8825 | BA16: =SUM(BA27-BA26) -> 1219 | BB16: 1217 | BC16: 1625 | BD16: 1306 | BE16: 1395 | BF16: 1701 | BG16: 8463 | BH16: =SUM(((BA16+BD16+(BA16+BD16)*5/100)*BB3)+((BB16+BE16+(BB16+BE16)*5/100)*BD3)+((BC16+BF16+(BC16+BF16)*5/100)*BF3)) -> 40824.903 | BI16: =SUM(BI27-BI26) -> 508 | BJ16: 444 | BK16: 702 | BL16: 658 | BM16: 772 | BN16: 888 | BO16: 3972 | BP16: =SUM(((BI16+BL16+(BI16+BL16)*5/100)*BB3)+((BJ16+BM16+(BJ16+BM16)*5/100)*BD3)+((BK16+BN16+(BK16+BN16)*5/100)*BF3)) -> 19176.36 | BQ16: =SUM(BQ27-BQ26) -> 2045 | BR16: 1741 | BS16: 2133 | BT16: 1920 | BU16: 2093 | BV16: 2454 | BW16: 12386 | BX16: =SUM(((BQ16+BT16+(BQ16+BT16)*5/100)*BB3)+((BR16+BU16+(BR16+BU16)*5/100)*BD3)+((BS16+BV16+(BS16+BV16)*5/100)*BF3)) -> 60012.561 | BY16: =SUM(BH16+BP16+BX16) -> 120013.824 | BZ16: =SUM(BZ27-BZ26) -> 2283 | CA16: 2612 | CB16: 3436 | CC16: 3006 | CD16: 3183 | CE16: 4182 | CF16: 18702 | CG16: =SUM(((BZ16+CC16+(BZ16+CC16)*5/100)*BB3)+((CA16+CD16+(CA16+CD16)*5/100)*BD3)+((CB16+CE16+(CB16+CE16)*5/100)*BF3)) -> 89801.0715 | CH16: =SUM(CH27-CH26) -> 5585 | CI16: 5434 | CJ16: 6957 | CK16: 6932 | CL16: 7497 | CM16: 9059 | CN16: 41464 | CO16: =SUM(((CH16+CK16+(CH16+CK16)*5/100)*BB3)+((CI16+CL16+(CI16+CL16)*5/100)*BD3)+((CJ16+CM16+(CJ16+CM16)*5/100)*BF3)) -> 199681.0095 | CP16: =SUM(CP27-CP26) -> 3270 | CQ16: 3268 | CR16: 3905 | CS16: 3585 | CT16: 3794 | CU16: 4707 | CV16: 22529 | CW16: =SUM(((CP16+CS16+(CP16+CS16)*5/100)*BB3)+((CQ16+CT16+(CQ16+CT16)*5/100)*BD3)+((CR16+CU16+(CR16+CU16)*5/100)*BF3)) -> 108419.682 | CX16: =SUM(CG16+CO16+CW16) -> 397901.763 | CY16: =SUM(BY16+CX16) -> 517915.587 | CZ16: =SUM(Z16+AY16+BY16+CX16) -> 1257078.47
A18: 2018 | B18: =SUM(B29-B28) -> 4171 | C18: 4509 | D18: 5257 | E18: 5370 | F18: =SUM(F29-F28) -> 5845 | G18: 7242 | H18: =SUM(B18:G18) -> 32394 | I18: =SUM(((B18+E18+(B18+E18)*5/100)*C5)+((C18+F18+(C18+F18)*5/100)*E5)+((D18+G18+(D18+G18)*5/100)*G5)) -> 154783.797 | J18: =SUM(J29-J28) -> 4836 | K18: 4975 | L18: 6021 | M18: 6186 | N18: 6790 | O18: 8083 | P18: =SUM(J18:O18) -> 36891 | Q18: =SUM(((J18+M18+(J18+M18)*5/100)*C5)+((K18+N18+(K18+N18)*5/100)*E5)+((L18+O18+(L18+O18)*5/100)*G5)) -> 176548.0395 | R18: =SUM(R29-R28) -> 5843 | S18: 5905 | T18: 7459 | U18: 6728 | V18: 7430 | W18: 8725 | X18: 42090 | Y18: =SUM(((R18+U18+(R18+U18)*5/100)*C5)+((S18+V18+(S18+V18)*5/100)*E5)+((T18+W18+(T18+W18)*5/100)*G5)) -> 201755.6415 | Z18: =SUM(I18+Q18+Y18) -> 533087.478 | AA18: =SUM(AA29-AA28) -> 3655 | AB18: 3583 | AC18: 4669 | AD18: 4493 | AE18: 4778 | AF18: 6132 | AG18: 27310 | AH18: =SUM(((AA18+AD18+(AA18+AD18)*5/100)*C5)+((AB18+AE18+(AB18+AE18)*5/100)*E5)+((AC18+AF18+(AC18+AF18)*5/100)*G5)) -> 131997.2325 | AI18: =SUM(AI29-AI28) -> 2024 | AJ18: 2111 | AK18: 2607 | AL18: 2675 | AM18: 2999 | AN18: 3599 | AO18: 16015 | AP18: =SUM(((AI18+AL18+(AI18+AL18)*5/100)*C5)+((AJ18+AM18+(AJ18+AM18)*5/100)*E5)+((AK18+AN18+(AK18+AN18)*5/100)*G5)) -> 76535.256 | AQ18: =SUM(AQ29-AQ28) -> 825 | AR18: 948 | AS18: 1107 | AT18: 1599 | AU18: 1847 | AV18: 2142 | AW18: 8468 | AX18: =SUM(((AQ18+AT18+(AQ18+AT18)*5/100)*C5)+((AR18+AU18+(AR18+AU18)*5/100)*E5)+((AS18+AV18+(AS18+AV18)*5/100)*G5)) -> 40048.7955 | AY18: =SUM(AH18+AP18+AX18) -> 248581.284 | AZ18: =SUM(Z18+AY18) -> 781668.762 | BA18: =SUM(BA29-BA28) -> 679 | BB18: 881 | BC18: 1017 | BD18: 1785 | BE18: 2050 | BF18: 2322 | BG18: 8734 | BH18: =SUM(((BA18+BD18+(BA18+BD18)*5/100)*BB5)+((BB18+BE18+(BB18+BE18)*5/100)*BD5)+((BC18+BF18+(BC18+BF18)*5/100)*BF5)) -> 41484.219 | BI18: =SUM(BI29-BI28) -> 723 | BJ18: 966 | BK18: 1110 | BL18: 828 | BM18: 1799 | BN18: 2157 | BO18: 7583 | BP18: =SUM(((BI18+BL18+(BI18+BL18)*5/100)*BB5)+((BJ18+BM18+(BJ18+BM18)*5/100)*BD5)+((BK18+BN18+(BK18+BN18)*5/100)*BF5)) -> 34549.956 | BQ18: =SUM(BQ29-BQ28) -> 1157 | BR18: 1247 | BS18: 1603 | BT18: 2735 | BU18: 2314 | BV18: 2650 | BW18: 11706 | BX18: =SUM(((BQ18+BT18+(BQ18+BT18)*5/100)*BB5)+((BR18+BU18+(BR18+BU18)*5/100)*BD5)+((BS18+BV18+(BS18+BV18)*5/100)*BF5)) -> 57603.609 | BY18: =SUM(BH18+BP18+BX18) -> 133637.784 | BZ18: =SUM(BZ29-BZ28) -> 2780 | CA18: 2587 | CB18: 3445 | CC18: 2883 | CD18: 3297 | CE18: 3708 | CF18: 18700 | CG18: =SUM(((BZ18+CC18+(BZ18+CC18)*5/100)*BB5)+((CA18+CD18+(CA18+CD18)*5/100)*BD5)+((CB18+CE18+(CB18+CE18)*5/100)*BF5)) -> 90681.57 | CH18: =SUM(CH29-CH28) -> 5205 | CI18: 5171 | CJ18: 6643 | CK18: 4198 | CL18: 4310 | CM18: 5498 | CN18: 31025 | CO18: =SUM(((CH18+CK18+(CH18+CK18)*5/100)*BB5)+((CI18+CL18+(CI18+CL18)*5/100)*BD5)+((CJ18+CM18+(CJ18+CM18)*5/100)*BF5)) -> 151478.754 | CP18: =SUM(CP29-CP28) -> 5319 | CQ18: 5462 | CR18: 6679 | CS18: 4933 | CT18: 5039 | CU18: 6401 | CV18: 33833 | CW18: =SUM(((CP18+CS18+(CP18+CS18)*5/100)*BB5)+((CQ18+CT18+(CQ18+CT18)*5/100)*BD5)+((CR18+CU18+(CR18+CU18)*5/100)*BF5)) -> 164598.252 | CX18: =SUM(CG18+CO18+CW18) -> 406758.576 | CY18: =SUM(BY18+CX18) -> 540396.36 | CZ18: =SUM(Z18+AY18+BY18+CX18) -> 1322065.122
R19: =SUM(R18-R16) -> 1644 | S19: =SUM(S18-S16) -> 2020 | T19: 2409 | U19: 2259 | V19: 3299 | W19: 2838 | X19: =SUM(R19:W19) -> 14469
A20: 2019 | B20: 6485 | C20: 6720 | D20: 8450 | E20: 8697 | F20: =SUM(F31-F30) -> 9141 | G20: 11130 | H20: =SUM(B20:G20) -> 50623 | I20: =SUM(((B20+E20+(B20+E20)*5/100)*C7)+((C20+F20+(C20+F20)*5/100)*E7)+((D20+G20+(D20+G20)*5/100)*G7)) -> 249666.1545 | J20: 4927 | K20: 5237 | L20: 6855 | M20: 6841 | N20: 7492 | O20: 8809 | P20: =SUM(J20:O20) -> 40161 | Q20: =SUM(((J20+M20+(J20+M20)*5/100)*C7)+((K20+N20+(K20+N20)*5/100)*E7)+((L20+O20+(L20+O20)*5/100)*G7)) -> 197210.3595 | R20: 5036 | S20: 4859 | T20: 6522 | U20: 5807 | V20: 6300 | W20: 7739 | X20: 36263 | Y20: =SUM(((R20+U20+(R20+U20)*5/100)*C7)+((S20+V20+(S20+V20)*5/100)*E7)+((T20+W20+(T20+W20)*5/100)*G7)) -> 179556.5415 | Z20: =SUM(I20+Q20+Y20) -> 626433.0555 | AA20: 4405 | AB20: 4221 | AC20: 5813 | AD20: 5249 | AE20: 5591 | AF20: 7227 | AG20: 32506 | AH20: =SUM(((AA20+AD20+(AA20+AD20)*5/100)*C7)+((AB20+AE20+(AB20+AE20)*5/100)*E7)+((AC20+AF20+(AC20+AF20)*5/100)*G7)) -> 161583.429 | AI20: 1402 | AJ20: 1403 | AK20: 1813 | AL20: 2289 | AM20: 2586 | AN20: 3033 | AO20: 12526 | AP20: =SUM(((AI20+AL20+(AI20+AL20)*5/100)*C7)+((AJ20+AM20+(AJ20+AM20)*5/100)*E7)+((AK20+AN20+(AK20+AN20)*5/100)*G7)) -> 61462.842 | AQ20: 862 | AR20: 1047 | AS20: 1189 | AT20: 2076 | AU20: 2297 | AV20: 2735 | AW20: 10206 | AX20: =SUM(((AQ20+AT20+(AQ20+AT20)*5/100)*C7)+((AR20+AU20+(AR20+AU20)*5/100)*E7)+((AS20+AV20+(AS20+AV20)*5/100)*G7)) -> 49652.127 | AY20: =SUM(AH20+AP20+AX20) -> 272698.398 | AZ20: =SUM(Z20+AY20) -> 899131.4535 | BA20: 1063 | BB20: 1198 | BC20: 1507 | BD20: 1981 | BE20: 2225 | BF20: 2606 | BG20: 10580 | BH20: =SUM(((BA20+BD20+(BA20+BD20)*5/100)*BB7)+((BB20+BE20+(BB20+BE20)*5/100)*BD7)+((BC20+BF20+(BC20+BF20)*5/100)*BF7)) -> 52277.589 | BI20: 1066 | BJ20: 1129 | BK20: 1476 | BL20: 2175 | BM20: 2524 | BN20: 2836 | BO20: 11206 | BP20: =SUM(((BI20+BL20+(BI20+BL20)*5/100)*BB7)+((BJ20+BM20+(BJ20+BM20)*5/100)*BD7)+((BK20+BN20+(BK20+BN20)*5/100)*BF7)) -> 55293.945 | BQ20: 2407 | BR20: 2424 | BS20: 3156 | BT20: 2922 | BU20: 3277 | BV20: 3908 | BW20: 18094 | BX20: =SUM(((BQ20+BT20+(BQ20+BT20)*5/100)*BB7)+((BR20+BU20+(BR20+BU20)*5/100)*BD7)+((BS20+BV20+(BS20+BV20)*5/100)*BF7)) -> 90084.477 | BY20: =SUM(BH20+BP20+BX20) -> 197656.011 | BZ20: 2935 | CA20: 2553 | CB20: 3702 | CC20: 2262 | CD20: 2319 | CE20: 3104 | CF20: 16875 | CG20: =SUM(((BZ20+CC20+(BZ20+CC20)*5/100)*BB7)+((CA20+CD20+(CA20+CD20)*5/100)*BD7)+((CB20+CE20+(CB20+CE20)*5/100)*BF7)) -> 85837.9935 | CH20: 3498 | CI20: 3172 | CJ20: 4544 | CK20: 2929 | CL20: 2993 | CM20: 4210 | CN20: 21346 | CO20: =SUM(((CH20+CK20+(CH20+CK20)*5/100)*BB7)+((CI20+CL20+(CI20+CL20)*5/100)*BD7)+((CJ20+CM20+(CJ20+CM20)*5/100)*BF7)) -> 108403.281 | CP20: 4307 | CQ20: 4319 | CR20: 5593 | CS20: 4056 | CT20: 4129 | CU20: 5763 | CV20: 28167 | CW20: =SUM(((CP20+CS20+(CP20+CS20)*5/100)*BB7)+((CQ20+CT20+(CQ20+CT20)*5/100)*BD7)+((CR20+CU20+(CR20+CU20)*5/100)*BF7)) -> 141809.2935 | CX20: =SUM(CG20+CO20+CW20) -> 336050.568 | CY20: =SUM(BY20+CX20) -> 533706.579 | CZ20: =SUM(Z20+AY20+BY20+CX20) -> 1432838.032
B21: =SUM(B20-B18) -> 2314 | C21: =SUM(C20-C18) -> 2211 | D21: 3193 | E21: 3327 | F21: 3296 | G21: 3888 | H21: =SUM(B21:G21) -> 18229
A22: 2020 | B22: 5804 | C22: 6279 | D22: 7306 | E22: 5533 | F22: =SUM(F33-F32) -> 5778 | G22: 7495 | H22: =SUM(B22:G22) -> 38195 | I22: =SUM(((B22+E22+(B22+E22)*5/100)*C9)+((C22+F22+(C22+F22)*5/100)*E9)+((D22+G22+(D22+G22)*5/100)*G9)) -> 190183.3185 | J22: 4305 | K22: 4910 | L22: 5584 | M22: 5036 | N22: 5299 | O22: 6745 | P22: =SUM(J22:O22) -> 31879 | Q22: =SUM(((J22+M22+(J22+M22)*5/100)*C9)+((K22+N22+(K22+N22)*5/100)*E9)+((L22+O22+(L22+O22)*5/100)*G9)) -> 158082.9285 | R22: 4230 | S22: 4524 | T22: 5606 | U22: 5371 | V22: 5906 | W22: 7078 | X22: =SUM(R22:W22) -> 32715 | Y22: =SUM(((R22+U22+(R22+U22)*5/100)*C9)+((S22+V22+(S22+V22)*5/100)*E9)+((T22+W22+(T22+W22)*5/100)*G9)) -> 162409.7475 | Z22: =SUM(I22+Q22+Y22) -> 510675.9945 | AA22: 2803 | AB22: 2836 | AC22: 3727 | AD22: 2894 | AE22: 3182 | AF22: 3728 | AG22: =SUM(AA22:AF22) -> 19170 | AH22: =SUM(((AA22+AD22+(AA22+AD22)*5/100)*C9)+((AB22+AE22+(AB22+AE22)*5/100)*E9)+((AC22+AF22+(AC22+AF22)*5/100)*G9)) -> 95577.804 | AI22: 2767 | AJ22: 2405 | AK22: 3584 | AL22: 2882 | AM22: 3078 | AN22: 3704 | AO22: =SUM(AI22:AN22) -> 18420 | AP22: =SUM(((AI22+AL22+(AI22+AL22)*5/100)*C9)+((AJ22+AM22+(AJ22+AM22)*5/100)*E9)+((AK22+AN22+(AK22+AN22)*5/100)*G9)) -> 93090.984 | AQ22: 875 | AR22: 731 | AS22: 1112 | AT22: 1452 | AU22: 1492 | AV22: 1961 | AW22: =SUM(AQ22:AV22) -> 7623 | AX22: =SUM(((AQ22+AT22+(AQ22+AT22)*5/100)*C9)+((AR22+AU22+(AR22+AU22)*5/100)*E9)+((AS22+AV22+(AS22+AV22)*5/100)*G9)) -> 38674.3245 | AY22: =SUM(AH22+AP22+AX22) -> 227343.1125 | AZ22: =SUM(Z22+AY22) -> 738019.107 | BA22: 831 | BB22: 899 | BC22: 1132 | BD22: 1702 | BE22: 1828 | BF22: 2280 | BG22: =SUM(BA22:BF22) -> 8672 | BH22: =SUM(((BA22+BD22+(BA22+BD22)*5/100)*BB9)+((BB22+BE22+(BB22+BE22)*5/100)*BD9)+((BC22+BF22+(BC22+BF22)*5/100)*BF9)) -> 44979.5115 | BI22: -191096 | BJ22: -188479 | BK22: -243322 | BL22: -216986 | BM22: -228740 | BN22: -286860 | BO22: =SUM(BI22:BN22) -> -1355483 | BP22: =SUM(((BI22+BL22+(BI22+BL22)*5/100)*BB9)+((BJ22+BM22+(BJ22+BM22)*5/100)*BD9)+((BK22+BN22+(BK22+BN22)*5/100)*BF9)) -> -7076637.729 | BQ22: 0 | BR22: 0 | BS22: 0 | BT22: 0 | BU22: 0 | BV22: 0 | BW22: =SUM(BQ22:BV22) -> 0 | BX22: =SUM(((BQ22+BT22+(BQ22+BT22)*5/100)*BB91)+((BR22+BU22+(BR22+BU22)*5/100)*BD9)+((BS22+BV22+(BS22+BV22)*5/100)*BF9)) -> 0 | BY22: =SUM(BH22+BP22+BX22) -> -7031658.218 | BZ22: 0 | CA22: 0 | CB22: 0 | CC22: 0 | CD22: 0 | CE22: 0 | CF22: =SUM(BZ22:CE22) -> 0 | CG22: =SUM(((BZ22+CC22+(BZ22+CC22)*5/100)*BB9)+((CA22+CD22+(CA22+CD22)*5/100)*BD9)+((CB22+CE22+(CB22+CE22)*5/100)*BF9)) -> 0 | CH22: 0 | CI22: 0 | CJ22: 0 | CK22: 0 | CL22: 0 | CM22: 0 | CN22: =SUM(CH22:CM22) -> 0 | CO22: =SUM(((CH22+CK22+(CH22+CK22)*5/100)*BB9)+((CI22+CL22+(CI22+CL22)*5/100)*BD9)+((CJ22+CM22+(CJ22+CM22)*5/100)*BF9)) -> 0 | CP22: 0 | CQ22: 0 | CR22: 0 | CS22: 0 | CT22: 0 | CU22: 0 | CV22: =SUM(CP22:CU22) -> 0 | CW22: =SUM(((CP22+CS22+(CP22+CS22)*5/100)*BB9)+((CQ22+CT22+(CQ22+CT22)*5/100)*BD9)+((CR22+CU22+(CR22+CU22)*5/100)*BF9)) -> 0 | CX22: =SUM(CG22+CO22+CW22) -> 0 | CY22: =SUM(BY22+CX22) -> -7031658.218 | CZ22: =SUM(Z22+AY22+BY22+CX22) -> -6293639.111
A24: 2016 | B24: 0 | AI24: 37955 | AJ24: 35954 | AK24: 47686 | AL24: 38913 | AM24: 42080 | AN24: 51042 | AQ24: 37955 | AR24: 35954 | AS24: 47686 | AT24: 38913 | AU24: 42080 | AV24: 51042 | BA24: 38746 | BB24: 36909 | BC24: 48794 | BD24: 40002 | BE24: 43248 | BF24: 52459 | BI24: 39523 | BJ24: 37928 | BK24: 49816 | BL24: 41356 | BM24: 44782 | BN24: 54195 | BQ24: 40364 | BR24: 39117 | BS24: 51079 | BT24: 42607 | BU24: 46180 | BV24: 55836 | BZ24: 42033 | CA24: 40929 | CB24: 53197 | CC24: 44509 | CD24: 48072 | CE24: 58254 | CH24: 44189 | CI24: 43371 | CJ24: 55666 | CK24: 46417 | CL24: 49762 | CM24: 60766 | CP24: 49531 | CQ24: 49026 | CR24: 62171 | CS24: 51268 | CT24: 54782 | CU24: 67319
AI25: 37955 | AJ25: 35954 | AK25: 47686 | AL25: 38913 | AM25: 42080 | AN25: 51042 | AQ25: 38746 | AR25: 36909 | AS25: 48794 | AT25: 40002 | AU25: 43248 | AV25: 52459 | BA25: 39523 | BB25: 37928 | BC25: 49816 | BD25: 41356 | BE25: 44782 | BF25: 54195 | BI25: 40364 | BJ25: 39117 | BK25: 51079 | BL25: 42607 | BM25: 46180 | BN25: 55836 | BQ25: 42033 | BR25: 40929 | BS25: 53197 | BT25: 44509 | BU25: 48072 | BV25: 58254 | BZ25: 44189 | CA25: 43371 | CB25: 55666 | CC25: 46417 | CD25: 49762 | CE25: 60766 | CH25: 49531 | CI25: 49026 | CJ25: 62171 | CK25: 51268 | CL25: 54782 | CM25: 67319 | CP25: 56187 | CQ25: 55694 | CR25: 70292 | CS25: 57661 | CT25: 61193 | CU25: 75630
A26: 2017 | B26: 56187 | C26: 55694 | D26: 70292 | E26: 57661 | F26: 61193 | G26: 75630 | J26: 61198 | K26: 59026 | L26: 76455 | M26: 63143 | N26: 65407 | O26: 82806 | R26: 67464 | S26: 64344 | T26: 84153 | U26: 69446 | V26: 71604 | W26: 90953 | AA26: 71663 | AB26: 68229 | AC26: 89203 | AD26: 73915 | AE26: 75735 | AF26: 96840 | AI26: 75705 | AJ26: 71322 | AK26: 94195 | AL26: 79004 | AM26: 80103 | AN26: 103799 | AQ26: 77794 | AR26: 73363 | AS26: 96764 | AT26: 81232 | AU26: 82194 | AV26: 106765 | BA26: 78961 | BB26: 74552 | BC26: 98276 | BD26: 83012 | BE26: 84071 | BF26: 109119 | BI26: 80180 | BJ26: 75769 | BK26: 99901 | BL26: 84318 | BM26: 85466 | BN26: 110820 | BQ26: 80688 | BR26: 76213 | BS26: 100603 | BT26: 84976 | BU26: 86238 | BV26: 111708 | BZ26: 82733 | CA26: 77954 | CB26: 102736 | CC26: 86896 | CD26: 88331 | CE26: 114162 | CH26: 85016 | CI26: 80566 | CJ26: 106172 | CK26: 89902 | CL26: 91514 | CM26: 118344 | CP26: 90601 | CQ26: 86000 | CR26: 113129 | CS26: 96834 | CT26: 99011 | CU26: 127403
B27: 61198 | C27: 59026 | D27: 76455 | E27: 63143 | F27: 65407 | G27: 82806 | J27: 67464 | K27: 64344 | L27: 84153 | M27: 69446 | N27: 71604 | O27: 90953 | R27: 71663 | S27: 68229 | T27: 89203 | U27: 73915 | V27: 75735 | W27: 96840 | AA27: 75705 | AB27: 71322 | AC27: 94195 | AD27: 79004 | AE27: 80103 | AF27: 103799 | AI27: 77794 | AJ27: 73363 | AK27: 96764 | AL27: 81232 | AM27: 82194 | AN27: 106765 | AQ27: 78961 | AR27: 74552 | AS27: 98276 | AT27: 83012 | AU27: 84071 | AV27: 109119 | BA27: 80180 | BB27: 75769 | BC27: 99901 | BD27: 84318 | BE27: 85466 | BF27: 110820 | BI27: 80688 | BJ27: 76213 | BK27: 100603 | BL27: 84976 | BM27: 86238 | BN27: 111708 | BQ27: 82733 | BR27: 77954 | BS27: 102736 | BT27: 86896 | BU27: 88331 | BV27: 114162 | BZ27: 85016 | CA27: 80566 | CB27: 106172 | CC27: 89902 | CD27: 91514 | CE27: 118344 | CH27: 90601 | CI27: 86000 | CJ27: 113129 | CK27: 96834 | CL27: 99011 | CM27: 127403 | CP27: 93871 | CQ27: 89268 | CR27: 117034 | CS27: 100419 | CT27: 102805 | CU27: 132110
A28: 2018 | B28: 93871 | C28: 89268 | D28: 117034 | E28: 100419 | F28: 102805 | G28: 132110 | J28: 98042 | K28: 93777 | L28: 122291 | M28: 105789 | N28: 108650 | O28: 139352 | R28: 102878 | S28: 98752 | T28: 128312 | U28: 111975 | V28: 115440 | W28: 147435 | AA28: 108721 | AB28: 104657 | AC28: 135771 | AD28: 118703 | AE28: 122870 | AF28: 156160 | AI28: 112376 | AJ28: 108240 | AK28: 140440 | AL28: 123196 | AM28: 127648 | AN28: 162292 | AQ28: 114400 | AR28: 110351 | AS28: 143047 | AT28: 125871 | AU28: 130647 | AV28: 165891 | BA28: 115225 | BB28: 111299 | BC28: 144154 | BD28: 127470 | BE28: 132494 | BF28: 168033 | BI28: 115904 | BJ28: 112180 | BK28: 145171 | BL28: 129255 | BM28: 134544 | BN28: 170355 | BQ28: 116627 | BR28: 113146 | BS28: 146281 | BT28: 130083 | BU28: 136343 | BV28: 172512 | BZ28: 117784 | CA28: 114393 | CB28: 147884 | CC28: 132818 | CD28: 138657 | CE28: 175162 | CH28: 120564 | CI28: 116980 | CJ28: 151329 | CK28: 135701 | CL28: 141954 | CM28: 178870 | CP28: 125769 | CQ28: 122151 | CR28: 157972 | CS28: 139899 | CT28: 146264 | CU28: 184368
B29: 98042 | C29: 93777 | D29: 122291 | E29: 105789 | F29: 108650 | G29: 139352 | J29: 102878 | K29: 98752 | L29: 128312 | M29: 111975 | N29: 115440 | O29: 147435 | R29: 108721 | S29: 104657 | T29: 135771 | U29: 118703 | V29: 122870 | W29: 156160 | AA29: 112376 | AB29: 108240 | AC29: 140440 | AD29: 123196 | AE29: 127648 | AF29: 162292 | AI29: 114400 | AJ29: 110351 | AK29: 143047 | AL29: 125871 | AM29: 130647 | AN29: 165891 | AQ29: 115225 | AR29: 111299 | AS29: 144154 | AT29: 127470 | AU29: 132494 | AV29: 168033 | BA29: 115904 | BB29: 112180 | BC29: 145171 | BD29: 129255 | BE29: 134544 | BF29: 170355 | BI29: 116627 | BJ29: 113146 | BK29: 146281 | BL29: 130083 | BM29: 136343 | BN29: 172512 | BQ29: 117784 | BR29: 114393 | BS29: 147884 | BT29: 132818 | BU29: 138657 | BV29: 175162 | BZ29: 120564 | CA29: 116980 | CB29: 151329 | CC29: 135701 | CD29: 141954 | CE29: 178870 | CH29: 125769 | CI29: 122151 | CJ29: 157972 | CK29: 139899 | CL29: 146264 | CM29: 184368 | CP29: 131088 | CQ29: 127613 | CR29: 164651 | CS29: 144832 | CT29: 151303 | CU29: 190769
A30: 2019 | B30: 131088 | C30: 127613 | D30: 164651 | E30: 144832 | F30: 151303 | G30: 190769 | J30: 137573 | K30: 134333 | L30: 173101 | M30: 153529 | N30: 160444 | O30: 201899 | R30: 142500 | S30: 139570 | T30: 179956 | U30: 160370 | V30: 167936 | W30: 210708 | AA30: 147536 | AB30: 144429 | AC30: 186478 | AD30: 166177 | AE30: 174236 | AF30: 218447 | AI30: 151941 | AJ30: 148650 | AK30: 192291 | AL30: 171426 | AM30: 179827 | AN30: 225674 | AQ30: 153343 | AR30: 150053 | AS30: 194104 | AT30: 173715 | AU30: 182413 | AV30: 228707 | BA30: 154205 | BB30: 151100 | BC30: 195293 | BD30: 175791 | BE30: 184710 | BF30: 231442 | BI30: 155268 | BJ30: 152298 | BK30: 196800 | BL30: 177772 | BM30: 186935 | BN30: 234048 | BQ30: 156334 | BR30: 153427 | BS30: 198276 | BT30: 179947 | BU30: 189459 | BV30: 236884 | BZ30: 158741 | CA30: 155851 | CB30: 201432 | CC30: 182869 | CD30: 192736 | CE30: 240792 | CH30: 161676 | CI30: 158404 | CJ30: 205134 | CK30: 185131 | CL30: 195055 | CM30: 243896 | CP30: 165174 | CQ30: 161576 | CR30: 209678 | CS30: 188060 | CT30: 198048 | CU30: 248106
B31: 137573 | C31: 134333 | D31: 173101 | E31: 153529 | F31: 160444 | G31: 201899 | J31: 142500 | K31: 139570 | L31: 179956 | M31: 160370 | N31: 167936 | O31: 210708 | R31: 147536 | S31: 144429 | T31: 186478 | U31: 166177 | V31: 174236 | W31: 218447 | AA31: 151941 | AB31: 148650 | AC31: 192291 | AD31: 171426 | AE31: 179827 | AF31: 225674 | AI31: 153343 | AJ31: 150053 | AK31: 194104 | AL31: 173715 | AM31: 182413 | AN31: 228707 | AQ31: 154205 | AR31: 151100 | AS31: 195293 | AT31: 175791 | AU31: 184710 | AV31: 231442 | BA31: 155268 | BB31: 152298 | BC31: 196800 | BD31: 177772 | BE31: 186935 | BF31: 234048 | BI31: 156334 | BJ31: 153427 | BK31: 198276 | BL31: 179947 | BM31: 189459 | BN31: 236884 | BQ31: 158741 | BR31: 155851 | BS31: 201432 | BT31: 182869 | BU31: 192736 | BV31: 240792 | BZ31: 161676 | CA31: 158404 | CB31: 205134 | CC31: 185131 | CD31: 195055 | CE31: 243896 | CH31: 165174 | CI31: 161576 | CJ31: 209678 | CK31: 188060 | CL31: 198048 | CM31: 248106 | CP31: 169481 | CQ31: 165895 | CR31: 215271 | CS31: 192116 | CT31: 202177 | CU31: 253869
A32: 2020 | B32: 169481 | C32: 165895 | D32: 215271 | E32: 192116 | F32: 202177 | G32: 253869 | J32: 175285 | K32: 172174 | L32: 222577 | M32: 197649 | N32: 207955 | O32: 261364 | R32: 179590 | S32: 177084 | T32: 228161 | U32: 202685 | V32: 213254 | W32: 268109 | AA32: 183820 | AB32: 181608 | AC32: 233767 | AD32: 208056 | AE32: 219160 | AF32: 275187 | AI32: 186623 | AJ32: 184444 | AK32: 237494 | AL32: 210950 | AM32: 222342 | AN32: 278915 | AQ32: 189390 | AR32: 186849 | AS32: 241078 | AT32: 213832 | AU32: 225420 | AV32: 282619 | BA32: 190265 | BB32: 187580 | BC32: 242190 | BD32: 215284 | BE32: 226912 | BF32: 284580 | BI32: 191096 | BJ32: 188479 | BK32: 243322 | BL32: 216986 | BM32: 228740 | BN32: 286860
B33: 175285 | C33: 172174 | D33: 222577 | E33: 197649 | F33: 207955 | G33: 261364 | J33: 179590 | K33: 177084 | L33: 228161 | M33: 202685 | N33: 213254 | O33: 268109 | R33: 183820 | S33: 181608 | T33: 233767 | U33: 208056 | V33: 219160 | W33: 275187 | AA33: 186623 | AB33: 184444 | AC33: 237494 | AD33: 210950 | AE33: 222342 | AF33: 278915 | AI33: 189390 | AJ33: 186849 | AK33: 241078 | AL33: 213832 | AM33: 225420 | AN33: 282619 | AQ33: 190265 | AR33: 187580 | AS33: 242190 | AT33: 215284 | AU33: 226912 | AV33: 284580 | BA33: 191096 | BB33: 188479 | BC33: 243322 | BD33: 216986 | BE33: 228740 | BF33: 286860
B35: Якварь | C35: февраль | D35: март | E35: 1 Кв. | F35: апрель | G35: май | H35: июнь | I35: 2 кв. | J35: июль | K35: август | L35: сентябрь | M35: 3 кв. | N35: октябрь | O35: ноябрь | P35: декабрь | Q35: 4 кв. | R35: Год
A36: 2016 | B36: =SUM(H14) -> 0 | C36: =SUM(P14) -> 0 | D36: =SUM(X14) -> 0 | E36: =SUM(Z14) -> 0 | F36: =SUM(AG14) -> 0 | G36: =SUM(AO14) -> 0 | H36: =SUM(AW14) -> 6528 | I36: =SUM(F36:H36) -> 6528 | J36: =SUM(BG14) -> 7442 | K36: =SUM(BO14) -> 7583 | L36: =SUM(BW14) -> 11811 | M36: =SUM(J36:L36) -> 26836 | N36: =SUM(CF14) -> 13177 | O36: =SUM(CN14) -> 33926 | P36: =SUM(CV14) -> 42560 | Q36: =SUM(N36:P36) -> 89663 | R36: =SUM(E36+I36+M36+Q36) -> 123027
A38: 2017 | B38: =SUM(H16) -> 31378 | C38: =SUM(P16) -> 39929 | D38: =SUM(X16) -> 27621 | E38: =SUM(B38:D38) -> 98928 | F38: =SUM(AG16) -> 28543 | G38: =SUM(AO16) -> 13984 | H38: =SUM(AW16) -> 9879 | I38: =SUM(F38:H38) -> 52406 | J38: =SUM(BG16) -> 8463 | K38: =SUM(BO16) -> 3972 | L38: =SUM(BW16) -> 12386 | M38: =SUM(J38:L38) -> 24821 | N38: =SUM(CF16) -> 18702 | O38: =SUM(CN16) -> 41464 | P38: =SUM(CV16) -> 22529 | Q38: =SUM(N38:P38) -> 82695 | R38: =SUM(E38+I38+M38+Q38) -> 258850
A40: 2018 | B40: =SUM(H18) -> 32394 | C40: 36891 | D40: =SUM(X18) -> 42090 | E40: =SUM(B40:D40) -> 111375 | F40: =SUM(AG18) -> 27310 | G40: =SUM(AO18) -> 16015 | H40: =SUM(AW18) -> 8468 | I40: =SUM(F40:H40) -> 51793 | J40: =SUM(BG18) -> 8734 | K40: =SUM(BO18) -> 7583 | L40: =SUM(BW18) -> 11706 | M40: =SUM(J40:L40) -> 28023 | N40: =SUM(CF18) -> 18700 | O40: =SUM(CN18) -> 31025 | P40: =SUM(CV18) -> 33833 | Q40: =SUM(N40:P40) -> 83558 | R40: =SUM(E40+I40+M40+Q40) -> 274749
A42: 2019 | B42: =SUM(H20) -> 50623 | C42: 40161 | D42: =SUM(X20) -> 36263 | E42: =SUM(B42:D42) -> 127047 | F42: =SUM(AG20) -> 32506 | G42: =SUM(AO20) -> 12526 | H42: =SUM(AW20) -> 10206 | I42: =SUM(F42:H42) -> 55238 | J42: =SUM(BG20) -> 10580 | K42: =SUM(BO20) -> 11206 | L42: =SUM(BW20) -> 18094 | M42: =SUM(J42:L42) -> 39880 | N42: =SUM(CF20) -> 16875 | O42: =SUM(CN20) -> 21346 | P42: =SUM(CV20) -> 28167 | Q42: =SUM(N42:P42) -> 66388 | R42: =SUM(E42+I42+M42+Q42) -> 288553
CI47: 4

Sheet Свет (2)
A1: О Б Ъ Я В Л Е Н И Е
A4: В целях обеспечения режима экономии по оплате электроэнергии с 1 октября 2022 года вводится особый режим включения электричества на территории гаражного комплекса ООА "Никулино".
A5: В период с 00 часов до 06 часов будет отключаться подача электроэнергии в гаражные боксы.
L6: Правление ООА "Никулино"

Sheet Свет (3)
A1: Июль
A2: Счетчик 159 расход | D2: Счетчик 617 расход
A3: Т1 / П | B3: Т2 / Н | C3: Т3 / П/п | D3: Т1 / П | E3: Т2 / Н | F3: Т3 / П/п
A4: 190265 | B4: 187580 | C4: 242190 | D4: 215284 | E4: 226912 | F4: 284580
